bitfinex/quotes_ETHUSD_20250422
["timestamp","ask_amount","ask_price","bid_price","bid_amount"]
[1745308491974,0.6,1614.7,1614.5,15.49377865]
[1745308492306,0.6,1614.7,1614.6,6.19348445]
[1745308492799,0.6,1614.7,1614.6,12.68004536]
[1745308493697,0.6,1614.7,1614.6,6.48656091]
[1745308494157,0.6,1614.7,1614.6,12.68004536]
[1745308495614,0.6,1614.7,1614.6,15.42806441]
[1745308495889,6.19052156,1615.4,1615.0,6.19179926]
[1745308496086,6.19052156,1615.4,1615.1,3.48656091]
[1745308496588,6.19052156,1615.4,1615.1,9.67807819]
[1745308497089,6.1921791,1615.0,1614.7,0.45552832]
[1745308497260,6.1921791,1615.0,1614.7,3.0]
[1745308497463,6.19177822,1615.1,1614.7,9.19296408]
[1745308497661,6.19177822,1615.1,1614.7,9.1929073]
[1745308497874,6.19177822,1615.1,1614.7,9.19286703]
[1745308498073,6.19095445,1615.3,1615.0,6.19184384]
[1745308498372,6.94987,1615.4,1615.1,6.19143833]
[1745308498579,6.94987,1615.4,1615.0,9.67836153]
[1745308498804,6.94987,1615.4,1615.1,6.19142969]
[1745308498994,8.26387561,1615.4,1615.1,6.19142969]
[1745308499310,8.26387561,1615.4,1615.0,15.87008064]
[1745308499606,8.26387561,1615.4,1615.0,9.6783002]
[1745308499791,8.26387561,1615.4,1615.1,6.19154214]
[1745308499989,8.26387561,1615.4,1615.0,9.67827483]
[1745308500307,8.26387561,1615.4,1615.0,15.8699773]
[1745308500489,2.07330561,1615.4,1615.1,6.1915272]
[1745308500805,8.26376595,1615.4,1615.1,6.1915272]
[1745308501918,0.7593,1615.8,1615.3,3.8316]
[1745308502065,6.18985601,1615.6,1615.4,3.48656091]
[1745308502406,6.1894127,1615.7,1615.4,9.67687771]
[1745308502615,6.94834173,1615.8,1615.5,6.18993217]
[1745308502761,8.26204237,1615.8,1615.5,6.18993217]
[1745308502963,6.18980839,1615.6,1615.3,3.8316]
[1745308503164,6.18980839,1615.6,1615.3,3.0]
[1745308503589,6.19005712,1615.5,1615.3,3.0]
[1745308503912,6.94935712,1615.5,1615.3,3.0]
[1745308504209,6.88555697,1615.4,1615.2,6.708]
[1745308504610,6.94884696,1615.7,1615.3,6.19068082]
[1745308504780,6.94884696,1615.7,1615.4,6.19038683]
[1745308505298,6.94884696,1615.7,1615.3,12.38110302]
[1745308505496,6.94884696,1615.7,1615.4,6.19040865]
[1745308505813,6.94884696,1615.7,1615.3,6.19055151]
[1745308506008,7.77510172,1615.7,1615.3,12.38110348]
[1745308506192,7.77510172,1615.7,1615.4,6.19037377]
[1745308506393,7.77510172,1615.7,1615.3,6.19055151]
[1745308506606,7.77510172,1615.7,1615.3,12.3811224]
[1745308506802,13.96463655,1615.7,1615.3,12.3811224]
[1745308506989,7.77508959,1615.7,1615.3,12.38109928]
[1745308507418,7.77508959,1615.7,1615.3,6.19054777]
[1745308507586,6.18977107,1615.6,1615.3,6.19054777]
[1745308508091,7.77508959,1615.7,1615.4,6.19034463]
[1745308508301,13.96463295,1615.7,1615.3,13.21270122]
[1745308508500,13.96462318,1615.7,1615.3,13.21270122]
[1745308508704,0.7593,1615.7,1615.4,9.67671944]
[1745308509011,0.7593,1615.7,1615.4,15.86701391]
[1745308509232,6.95242038,1615.9,1615.6,9.67610112]
[1745308509929,6.41473102,1616.0,1615.6,16.6161171]
[1745308510131,12.60314244,1616.0,1615.6,16.6161171]
[1745308510442,7.75141526,1616.0,1615.7,6.18923491]
[1745308511429,0.2264733,1616.0,1615.9,6.18850176]
[1745308511630,0.2264733,1616.0,1615.8,15.86388273]
[1745308511937,0.2264733,1616.0,1615.9,6.18850176]
[1745308512841,0.2264733,1616.0,1615.9,9.18850176]
[1745308514131,0.2264733,1616.0,1615.9,11.55484365]
[1745308514338,0.2264733,1616.0,1615.9,11.55483264]
[1745308514524,0.2264733,1616.0,1615.9,11.49296424]
[1745308514831,0.7637,1616.9,1616.4,6.9370443]
[1745308515130,6.18433521,1617.0,1616.4,6.9370443]
[1745308515131,6.18620476,1616.5,1616.4,3.48656091]
[1745308515329,6.80505,1616.5,1616.3,6.706]
[1745308515496,0.61862048,1616.5,1616.3,6.706]
[1745308515700,6.94969281,1616.6,1616.3,6.706]
[1745308516850,6.94969281,1616.6,1616.3,12.89293693]
[1745308517048,6.18563974,1616.7,1616.3,12.89293693]
[1745308517231,6.18584239,1616.6,1616.3,12.89293693]
[1745308517834,6.18584239,1616.6,1616.3,6.706]
[1745308518059,0.61858424,1616.5,1616.3,6.706]
[1745308518258,6.80480014,1616.5,1616.3,6.706]
[1745308518772,6.18658747,1616.4,1616.3,6.706]
[1745308519163,6.18658747,1616.4,1616.1,6.18772819]
[1745308519564,13.75502143,1616.5,1616.1,6.18758855]
[1745308520060,6.18671393,1616.4,1616.1,6.18758855]
[1745308520278,0.7637,1616.5,1616.1,1.96126615]
[1745308520441,6.94931801,1616.7,1616.4,6.18647813]
[1745308521276,6.18561801,1616.7,1616.4,6.18647813]
[1745308522287,6.18561801,1616.7,1616.4,3.0]
[1745308523043,12.37132149,1616.7,1616.4,3.0]
[1745308523471,6.18561801,1616.7,1616.4,3.0]
[1745308523670,6.18620476,1616.5,1616.0,0.7506]
[1745308523848,6.18717061,1616.3,1616.0,3.7506]
[1745308524174,6.18717061,1616.3,1616.0,9.93861297]
[1745308524347,6.18717061,1616.3,1616.0,3.7506]
[1745308524542,6.18683029,1616.4,1616.0,3.7506]
[1745308524543,6.18683029,1616.4,1616.0,11.60307108]
[1745308524750,7.56840599,1616.6,1616.1,6.1875072]
[1745308524997,7.56840599,1616.6,1616.2,6.18713566]
[1745308525280,6.18686513,1616.4,1616.1,6.18771682]
[1745308525582,12.37283267,1616.5,1616.1,12.37520382]
[1745308525742,6.18659382,1616.4,1616.0,11.60293534]
[1745308525934,6.18659382,1616.4,1616.0,17.79092501]
[1745308526136,6.18659382,1616.4,1616.0,11.60293534]
[1745308526377,6.18659382,1616.4,1616.1,7.34790897]
[1745308528206,0.7686,1616.1,1615.6,0.46966895]
[1745308528357,6.5128814,1615.3,1614.8,4.30596091]
[1745308528557,6.5128814,1615.3,1614.8,4.77075015]
[1745308528858,6.5128814,1615.3,1615.1,3.0]
[1745308529257,0.3220423,1615.3,1615.0,3.48656091]
[1745308529496,10.04938015,1615.3,1615.0,3.48656091]
[1745308529658,3.85838034,1615.3,1615.0,9.6785039]
[1745308529857,0.3220423,1615.3,1615.0,9.67836654]
[1745308530158,0.3220423,1615.3,1615.2,3.48656091]
[1745308530460,0.3220423,1615.3,1615.2,10.22774466]
[1745308530689,0.3220423,1615.3,1615.2,13.22774466]
[1745308532198,0.3220423,1615.3,1615.2,14.04714466]
[1745308532658,6.95659398,1616.1,1615.7,6.18909054]
[1745308532865,6.95659398,1616.1,1615.7,4.30596091]
[1745308533190,6.18855244,1615.9,1615.7,3.8194]
[1745308533395,6.51046432,1616.0,1615.7,3.8194]
[1745308534602,12.69889804,1616.0,1615.7,3.8194]
[1745308535193,6.51046432,1616.0,1615.7,3.8194]
[1745308535495,6.51046432,1616.0,1615.7,5.48927859]
[1745308535863,12.69896471,1616.0,1615.7,5.48927859]
[1745308536261,6.51046432,1616.0,1615.7,5.48927859]
[1745308536456,6.51046432,1616.0,1615.7,5.55116538]
[1745308536697,6.51046432,1616.0,1615.7,11.74041706]
[1745308536997,6.51046432,1616.0,1615.8,1.17404171]
[1745308537369,0.3221482,1616.0,1615.8,7.36280951]
[1745308537902,0.3221482,1616.0,1615.8,13.55133512]
[1745308538065,0.3221482,1616.0,1615.8,7.36266729]
[1745308538263,0.3221482,1616.0,1615.9,14.7807294]
[1745308538574,0.3221482,1616.0,1615.9,0.73626673]
[1745308538891,6.51031544,1616.0,1615.7,5.48927859]
[1745308539065,6.51031544,1616.0,1615.7,11.67853498]
[1745308539668,12.69874856,1616.0,1615.7,5.48927859]
[1745308539908,6.18850784,1615.9,1615.7,3.8194]
[1745308540069,6.51031544,1616.0,1615.7,3.8194]
[1745308540599,6.51031544,1616.0,1615.7,10.00852485]
[1745308541300,6.51031544,1616.0,1615.7,3.8194]
[1745308541503,6.18852586,1615.9,1615.7,3.8194]
[1745308541806,12.69876473,1616.0,1615.7,3.8194]
[1745308541965,6.51031544,1616.0,1615.7,3.8194]
[1745308542392,6.51031544,1616.0,1615.7,14.33756227]
[1745308544196,6.51031544,1616.0,1615.7,8.14832028]
[1745308544406,6.18854522,1615.9,1615.7,8.14832028]
[1745308545400,6.18854522,1615.9,1615.7,7.32892028]
[1745308545601,6.18854522,1615.9,1615.7,3.0]
[1745308546210,0.3221482,1616.0,1615.7,3.0]
[1745308546395,0.3221482,1616.0,1615.9,9.18850176]
[1745308546639,0.3221482,1616.0,1615.9,3.0]
[1745308547702,0.3221482,1616.0,1615.9,9.18850176]
[1745308547873,0.3221482,1616.0,1615.9,10.80553018]
[1745308548397,0.3221482,1616.0,1615.9,3.0]
[1745308549117,0.3221482,1616.0,1615.8,9.18860193]
[1745308549283,0.3221482,1616.0,1615.9,6.18850176]
[1745308549471,0.3221482,1616.0,1615.8,15.37724544]
[1745308550069,0.3221482,1616.0,1615.9,6.18850176]
[1745308550472,0.3221482,1616.0,1615.8,3.0]
[1745308550913,0.3221482,1616.0,1615.8,15.37750837]
[1745308552094,0.3221482,1616.0,1615.8,6.18885006]
[1745308555233,0.3221482,1616.0,1615.3,7.138195]
[1745308555234,6.18978457,1615.6,1615.3,7.138195]
[1745308555413,6.18978457,1615.6,1615.3,13.32897727]
[1745308555609,6.18978457,1615.6,1615.4,3.0]
[1745308555812,0.32223205,1615.5,1615.4,3.0]
[1745308556834,0.32223205,1615.5,1615.3,12.86654685]
[1745308557956,0.32223205,1615.5,1615.3,17.24668881]
[1745308559134,0.32223205,1615.5,1615.4,9.19041723]
[1745308560723,0.32223205,1615.5,1615.4,10.54171723]
[1745308562664,6.1874802,1616.2,1615.8,6.99004623]
[1745308562867,6.1874802,1616.2,1615.8,19.85568092]
[1745308563067,0.32212493,1616.1,1615.8,19.85568092]
[1745308563272,0.32212493,1616.1,1616.0,3.0]
[1745308563434,0.32212493,1616.1,1616.0,9.18811881]
[1745308563631,0.32212493,1616.1,1616.0,10.53941881]
[1745308563828,0.7883,1616.5,1616.2,6.18725145]
[1745308564470,0.32203231,1616.4,1616.2,19.05137623]
[1745308564765,0.32203231,1616.4,1616.3,6.18697024]
[1745308566270,0.32203231,1616.4,1616.2,15.1172637]
[1745308567956,0.32203231,1616.4,1616.2,21.30439255]
[1745308568271,0.32203231,1616.4,1616.3,6.18697024]
[1745308568967,0.32203231,1616.4,1616.2,15.11724704]
[1745308569168,0.32203231,1616.4,1616.3,7.69869494]
[1745308570470,0.32203231,1616.4,1616.3,10.69869494]
[1745308572873,0.32203231,1616.4,1616.3,11.47749494]
[1745308573172,0.32203231,1616.4,1616.3,12.02749494]
[1745308573376,0.8252,1616.9,1616.6,6.18576879]
[1745308573576,0.32196341,1616.7,1616.6,6.18566383]
[1745308573775,0.32196341,1616.7,1616.6,9.24751566]
[1745308573955,0.32196341,1616.7,1616.6,16.70131566]
[1745308574143,7.00883856,1617.2,1616.8,6.18471899]
[1745308574343,0.32192348,1617.0,1616.8,6.18471899]
[1745308574773,0.32192348,1617.0,1616.8,12.36955463]
[1745308574974,0.32192348,1617.0,1616.8,3.0]
[1745308575461,0.32192348,1617.0,1616.8,9.18491329]
[1745308575879,0.32192348,1617.0,1616.8,3.0]
[1745308576080,7.01011897,1616.9,1616.6,6.675]
[1745308576275,7.01011897,1616.9,1616.6,6.18580976]
[1745308577205,13.19505852,1616.9,1616.5,6.1859193]
[1745308577423,1.31950585,1616.8,1616.5,6.1859193]
[1745308577587,6.18576054,1616.7,1616.4,7.1442389]
[1745308577788,7.50474997,1616.8,1616.5,6.18619335]
[1745308578190,1.31950585,1616.8,1616.5,6.18598801]
[1745308578510,1.31950585,1616.8,1616.5,6.18596969]
[1745308578721,0.8252,1616.7,1616.2,0.7788]
[1745308578929,6.18632894,1616.5,1616.2,6.187347]
[1745308579237,6.18597353,1616.6,1616.2,9.18724937]
[1745308579580,6.18597353,1616.6,1616.2,9.18717771]
[1745308579820,6.18648562,1616.5,1616.2,3.0]
[1745308580019,7.01197662,1616.4,1616.1,6.1874811]
[1745308580386,0.8252,1616.4,1616.1,6.1874811]
[1745308580584,0.8252,1616.4,1616.1,12.37497897]
[1745308580814,0.8252,1616.4,1616.1,6.1874811]
[1745308581275,0.8252,1616.4,1616.1,12.37496495]
[1745308581696,0.8252,1616.4,1616.1,6.1874811]
[1745308581900,6.18704835,1616.3,1616.1,3.0]
[1745308582113,0.8252,1616.4,1616.1,9.18748957]
[1745308583122,0.8252,1616.4,1616.2,6.18729317]
[1745308583623,0.8252,1616.4,1616.2,6.18715724]
[1745308584191,0.8252,1616.4,1616.2,12.37426316]
[1745308584408,0.8252,1616.4,1616.2,6.18710592]
[1745308584706,0.7623,1616.6,1616.3,6.18697024]
[1745308584902,6.94824912,1616.6,1616.3,6.18697024]
[1745308585341,0.7623,1616.6,1616.3,12.37368976]
[1745308585525,0.7623,1616.6,1616.4,6.18655392]
[1745308585731,0.7623,1616.6,1616.3,12.37343904]
[1745308585931,0.7623,1616.6,1616.3,6.18671952]
[1745308586132,6.94822093,1616.6,1616.3,6.18671952]
[1745308586508,0.7623,1616.6,1616.3,12.37345486]
[1745308586712,0.7623,1616.6,1616.4,6.1865731]
[1745308586935,0.7623,1616.6,1616.4,6.18645527]
[1745308587135,6.94760859,1616.8,1616.4,12.37280919]
[1745308587645,0.7623,1616.8,1616.6,6.18579691]
[1745308587843,7.91933254,1617.0,1616.7,6.18543947]
[1745308588147,6.18840768,1616.0,1615.6,6.18952307]
[1745308588346,6.18811881,1616.0,1615.6,1.23795571]
[1745308588648,6.18921684,1615.8,1615.5,3.0]
[1745308588850,6.95014121,1616.1,1615.5,3.0]
[1745308588851,6.95030328,1616.1,1615.7,6.97602058]
[1745308589023,0.7623,1616.1,1615.7,6.97602058]
[1745308589420,0.7623,1616.1,1615.8,6.1886202]
[1745308590040,0.7623,1616.1,1615.9,6.18847295]
[1745308590248,6.18707553,1616.3,1616.1,6.18755175]
[1745308590249,0.7623,1616.3,1616.1,6.18755175]
[1745308590413,0.7623,1616.5,1616.3,6.18673475]
[1745308590604,7.27068576,1616.7,1616.3,6.18673475]
[1745308591028,7.27068576,1616.7,1616.2,6.1871493]
[1745308591029,6.18600641,1616.6,1616.2,6.1871493]
[1745308591451,6.18600641,1616.6,1616.3,6.18684562]
[1745308592036,6.18600641,1616.6,1616.2,12.37434281]
[1745308592233,6.18600641,1616.6,1616.2,8.09058358]
[1745308592638,6.18583554,1616.6,1616.2,8.09058358]
[1745308593175,6.18583554,1616.6,1616.2,14.27768906]
[1745308593472,6.18583554,1616.6,1616.2,8.09053976]
[1745308594073,6.186243,1616.5,1616.2,8.09053976]
[1745308594379,6.18583554,1616.6,1616.3,6.18683748]
[1745308594832,0.32203719,1616.4,1616.3,6.18683748]
[1745308595038,0.32203719,1616.4,1616.2,8.09053976]
[1745308595235,0.32203719,1616.4,1616.1,12.84757324]
[1745308595474,0.32203719,1616.4,1616.1,19.03510129]
[1745308595975,1.07523719,1616.4,1616.1,19.03510129]
[1745308596574,1.07523719,1616.4,1616.2,6.18733179]
[1745308597089,0.32203719,1616.4,1616.2,12.3742414]
[1745308597399,0.32203719,1616.4,1616.2,14.27768812]
[1745308597682,0.32203719,1616.4,1616.2,8.09054484]
[1745308598143,0.32203719,1616.4,1616.2,14.27764677]
[1745308598343,0.32203719,1616.4,1616.2,8.09052607]
[1745308599069,0.32203719,1616.4,1616.2,14.27767651]
[1745308599245,0.32203719,1616.4,1616.2,14.27763082]
[1745308599672,0.32203719,1616.4,1616.2,8.09052607]
[1745308599874,0.32203719,1616.4,1616.3,9.18697024]
[1745308602270,0.32203719,1616.4,1616.3,10.91471987]
[1745308603444,0.32203719,1616.4,1616.3,9.18697024]
[1745308605277,0.32203719,1616.4,1616.1,15.84753065]
[1745308605481,0.32203719,1616.4,1616.2,6.18725312]
[1745308605683,0.32203719,1616.4,1616.3,8.34199347]
[1745308605883,6.18147318,1617.8,1617.0,0.8251]
[1745308606092,0.7608,1617.5,1617.3,6.18314474]
[1745308606294,6.94219896,1617.8,1617.2,13.66862708]
[1745308606598,0.8608,1617.4,1617.1,3.0]
[1745308606765,0.8608,1617.4,1616.9,6.18465405]
[1745308606994,7.04368275,1617.4,1616.8,9.1848661]
[1745308607304,0.70436828,1617.3,1616.8,15.36974364]
[1745308607490,0.70436828,1617.3,1616.7,7.93900771]
[1745308607491,0.7608,1617.2,1616.7,13.67028902]
[1745308607694,0.7608,1617.2,1616.8,6.18490447]
[1745308607988,0.7608,1617.2,1616.8,6.18487387]
[1745308608218,0.7608,1617.2,1616.9,6.18456635]
[1745308608384,0.7608,1617.2,1617.1,6.18390946]
[1745308608587,0.8608,1617.4,1617.0,6.1840508]
[1745308608789,0.8608,1617.4,1617.1,6.18369242]
[1745308608985,0.8608,1617.4,1617.2,6.18347289]
[1745308609216,0.8608,1617.4,1617.2,6.18333815]
[1745308609385,0.8608,1617.4,1617.1,6.18371659]
[1745308609787,6.18087709,1617.9,1617.1,6.18371659]
[1745308609788,12.69602029,1618.1,1617.4,6.18276245]
[1745308610007,11.93522029,1618.1,1618.0,9.18046971]
[1745308610211,12.86196113,1618.6,1618.4,6.17894216]
[1745308610520,12.86196113,1618.6,1618.3,6.17928373]
[1745308610721,12.86196113,1618.6,1618.0,7.4841]
[1745308610923,1.0368517,1618.4,1617.9,3.0]
[1745308611125,0.7608,1617.9,1616.3,3.67625093]
[1745308611327,0.7608,1618.2,1617.6,6.18170949]
[1745308611700,0.7608,1618.2,1617.7,6.1814533]
[1745308611910,6.94052969,1618.2,1617.6,6.64888417]
[1745308612090,0.69405297,1618.1,1617.7,6.18152884]
[1745308612287,0.7608,1618.2,1617.7,6.18137885]
[1745308613384,0.7608,1618.2,1617.8,6.18107845]
[1745308613586,0.7608,1618.2,1617.8,6.18100772]
[1745308613827,0.7608,1618.2,1617.8,6.1810026]
[1745308614033,0.7608,1618.2,1617.9,6.1807097]
[1745308614230,0.7608,1618.2,1617.6,0.8251]
[1745308614231,0.7608,1618.2,1618.0,6.1804685]
[1745308614586,0.7608,1618.2,1617.9,12.36125074]
[1745308614820,0.7608,1618.2,1617.8,15.83897961]
[1745308615125,0.7608,1618.2,1617.7,9.644]
[1745308615328,0.7608,1618.2,1617.7,15.82540412]
[1745308615529,0.7608,1618.2,1617.7,15.82537883]
[1745308615710,0.7608,1618.2,1617.8,6.18097823]
[1745308615891,0.7608,1618.2,1617.8,12.36199685]
[1745308616091,0.7608,1618.2,1617.9,6.18070518]
[1745308616287,0.7608,1618.2,1617.8,6.18120698]
[1745308616811,0.7608,1618.2,1617.7,15.8253762]
[1745308617128,0.7608,1618.2,1617.7,15.82534903]
[1745308617292,0.7608,1618.2,1617.8,6.18101102]
[1745308617487,0.7608,1618.2,1617.7,15.82543386]
[1745308617721,0.7608,1618.2,1617.7,15.82536105]
[1745308617901,6.94078502,1618.2,1617.7,6.644]
[1745308618226,0.6940785,1618.1,1617.7,19.00679245]
[1745308618423,0.7608,1618.2,1617.7,19.0067258]
[1745308618606,0.7608,1618.2,1617.7,12.82535676]
[1745308618802,0.7608,1618.2,1617.5,6.642]
[1745308618803,6.1811184,1617.9,1617.5,6.642]
[1745308619115,0.7608,1618.2,1617.5,6.642]
[1745308619116,0.8105,1617.8,1617.5,6.642]
[1745308619504,0.8105,1617.8,1617.6,6.18184199]
[1745308619700,0.8105,1617.8,1617.5,12.82424582]
[1745308620226,0.8105,1617.8,1617.6,6.18187672]
[1745308620397,0.8105,1617.8,1617.5,12.82416605]
[1745308620398,0.8105,1617.8,1617.5,12.8241611]
[1745308620721,0.8105,1617.8,1617.6,6.18191075]
[1745308620897,0.8105,1617.8,1617.5,12.82413575]
[1745308621104,0.8105,1617.8,1617.5,19.00626916]
[1745308621304,0.8105,1617.8,1617.6,6.18195817]
[1745308621637,0.8105,1617.8,1617.7,6.18161587]
[1745308621791,0.8105,1617.8,1617.6,6.18181676]
[1745308621990,0.8105,1617.8,1617.5,12.82412669]
[1745308622230,0.8105,1617.8,1617.6,6.18191538]
[1745308622537,0.8105,1618.0,1617.7,6.18161587]
[1745308622926,0.8105,1618.0,1617.6,6.18174133]
[1745308623127,0.8105,1618.0,1617.6,12.36351304]
[1745308623331,0.8105,1618.0,1617.7,6.18157592]
[1745308624115,0.8105,1618.0,1617.8,6.18117923]
[1745308624629,0.8105,1618.3,1617.8,12.3621783]
[1745308624814,13.16948741,1618.3,1617.8,6.1810818]
[1745308624990,13.67685706,1618.2,1617.7,6.18145051]
[1745308625195,7.49687563,1618.2,1617.7,6.18143821]
[1745308625428,7.49687563,1618.2,1617.7,12.36281256]
[1745308625731,1.31694874,1618.2,1617.8,6.18116962]
[1745308625926,1.31694874,1618.2,1617.9,6.18083012]
[1745308626132,0.8105,1618.3,1617.9,6.18083012]
[1745308626329,0.8105,1618.3,1617.9,6.18069368]
[1745308626530,0.8105,1618.3,1618.0,6.18044813]
[1745308626903,0.8105,1618.3,1617.9,6.18069368]
[1745308627111,0.8105,1618.3,1618.1,6.18001259]
[1745308627440,0.8105,1618.5,1618.3,6.17922224]
[1745308627741,0.005,1618.6,1618.3,6.17906932]
[1745308628045,0.005,1618.6,1618.3,12.35823944]
[1745308628245,0.005,1618.6,1618.3,6.17906932]
[1745308628432,0.005,1618.6,1618.4,6.17890531]
[1745308628634,0.005,1618.6,1618.3,6.17906932]
[1745308628805,6.17950918,1618.3,1617.9,3.0]
[1745308629003,0.8105,1618.5,1617.9,0.9180984]
[1745308629327,12.35908242,1618.3,1617.8,9.1810764]
[1745308629536,6.17948085,1618.3,1617.8,9.1810764]
[1745308629743,6.17912079,1618.4,1617.9,6.18056637]
[1745308629915,6.17912079,1618.4,1618.0,6.18036395]
[1745308630110,6.17912079,1618.4,1617.9,12.36124951]
[1745308630317,6.17912079,1618.4,1618.0,6.18042053]
[1745308630318,1.31683182,1618.4,1618.0,6.18042053]
[1745308630553,1.31683182,1618.4,1618.0,6.1802297]
[1745308630717,6.98914095,1618.5,1618.1,6.17984415]
[1745308631051,6.98914095,1618.5,1618.0,6.18021147]
[1745308631354,12.35844104,1618.4,1617.9,6.18062153]
[1745308631526,6.17914662,1618.4,1617.9,6.18062023]
[1745308631726,6.17914662,1618.4,1617.9,12.36122773]
[1745308632025,6.17914662,1618.4,1617.9,6.1806075]
[1745308632026,13.67523805,1618.4,1617.9,6.1806075]
[1745308632347,7.49598869,1618.4,1617.9,6.1806075]
[1745308632520,7.49598869,1618.4,1618.0,6.18045364]
[1745308633050,1.31684207,1618.4,1618.0,6.18018647]
[1745308633253,6.17910667,1618.4,1618.0,6.18018647]
[1745308633554,6.17984104,1618.2,1617.8,12.82106939]
[1745308633845,0.8134,1618.3,1618.0,6.18028284]
[1745308634046,0.8134,1618.5,1618.1,6.17983245]
[1745308634220,0.8134,1618.5,1618.1,7.41585163]
[1745308634421,0.8134,1618.5,1618.1,1.23601918]
[1745308634422,6.9921114,1618.5,1618.1,1.23601918]
[1745308634838,0.8134,1618.5,1617.7,0.827]
[1745308635020,0.8134,1618.1,1617.8,6.18114262]
[1745308635219,0.8134,1618.1,1617.8,12.36215131]
[1745308635418,0.8134,1618.1,1617.8,6.18100869]
[1745308636048,0.8134,1618.1,1617.8,6.18112578]
[1745308636249,6.18263748,1617.5,1617.1,7.01079578]
[1745308636452,12.36453619,1617.6,1617.2,6.18349293]
[1745308636743,6.99526515,1617.7,1617.3,9.18313294]
[1745308637259,6.18143746,1617.8,1617.3,9.18313294]
[1745308637260,6.18131459,1617.8,1617.4,7.00959989]
[1745308637557,0.8134,1617.9,1617.4,1.31925962]
[1745308637724,12.36391464,1617.7,1617.3,9.18311333]
[1745308637925,6.18192772,1617.7,1617.3,3.0]
[1745308638144,6.18192772,1617.7,1617.3,15.36594398]
[1745308638353,12.36308568,1617.8,1617.4,6.18272852]
[1745308638554,6.99613647,1617.5,1617.1,12.82378292]
[1745308639132,6.99607557,1617.5,1617.1,12.82378292]
[1745308639329,6.99607557,1617.5,1617.1,6.64]
[1745308639330,6.18287711,1617.4,1617.1,6.64]
[1745308639665,6.18287711,1617.4,1617.0,13.65105524]
[1745308639871,6.18287711,1617.4,1617.0,12.82405524]
[1745308640033,6.18287711,1617.4,1617.0,20.90895053]
[1745308640232,6.18287711,1617.4,1617.0,14.72489529]
[1745308640541,6.99590999,1617.5,1617.1,6.18379422]
[1745308640854,6.9959242,1617.5,1617.1,6.18379422]
[1745308641364,6.9959242,1617.5,1617.1,12.36747213]
[1745308641670,6.9959242,1617.5,1617.1,8.27449588]
[1745308641963,6.9959242,1617.5,1617.1,2.09083199]
[1745308642169,6.99596676,1617.5,1617.0,6.18417091]
[1745308642330,6.18277011,1617.4,1617.1,6.18377123]
[1745308642661,6.18277011,1617.4,1617.0,6.18405237]
[1745308642875,6.18277011,1617.4,1617.0,7.42089844]
[1745308643040,6.18277011,1617.4,1617.0,13.60494612]
[1745308643241,6.18319819,1617.3,1617.0,1.23685722]
[1745308643653,12.36669607,1617.3,1617.0,1.23685722]
[1745308643859,12.36669607,1617.3,1616.9,6.18449869]
[1745308643860,12.36665049,1617.3,1616.9,6.18449869]
[1745308644164,6.18319819,1617.3,1616.9,6.18449869]
[1745308644364,12.36664635,1617.3,1616.9,6.18449869]
[1745308644573,6.18297899,1617.4,1616.9,12.36905827]
[1745308644773,6.18297899,1617.4,1617.0,6.18399973]
[1745308645076,12.36609054,1617.4,1617.0,6.8023997]
[1745308645239,6.18315501,1617.3,1617.0,6.8023997]
[1745308645440,6.18297899,1617.4,1617.0,6.8023997]
[1745308645884,12.36603841,1617.4,1617.0,6.8023997]
[1745308646180,6.18317752,1617.3,1617.0,0.61839997]
[1745308646673,6.18297899,1617.4,1617.0,6.80261549]
[1745308647242,6.18297899,1617.4,1617.0,6.80246574]
[1745308647668,6.18325159,1617.3,1617.0,0.61839997]
[1745308647873,6.18325159,1617.3,1616.9,6.18444142]
[1745308648374,6.18297899,1617.4,1617.0,6.18405986]
[1745308648744,6.18297899,1617.4,1617.0,12.36813652]
[1745308648978,6.18297899,1617.4,1617.0,6.18405986]
[1745308649142,13.17869327,1617.5,1617.0,12.36813081]
[1745308649342,6.18288804,1617.4,1617.0,6.18405986]
[1745308649543,6.18288804,1617.4,1616.9,6.18442668]
[1745308649755,6.18288804,1617.4,1617.0,6.1842828]
[1745308650276,6.18288804,1617.4,1616.9,6.18442668]
[1745308650448,6.18324931,1617.3,1616.9,6.18442668]
[1745308650650,6.18288804,1617.4,1616.9,6.18442668]
[1745308650978,7.01430378,1617.4,1617.0,6.18404622]
[1745308651185,8.31389452,1617.5,1617.1,6.18374755]
[1745308652095,2.13126933,1617.5,1617.2,6.18326945]
[1745308652294,0.8134,1617.5,1617.2,12.36659875]
[1745308652473,0.8134,1617.5,1617.2,6.18326945]
[1745308654299,6.50337895,1617.9,1617.7,6.18161587]
[1745308654300,0.32245177,1617.9,1617.7,6.18161587]
[1745308654501,6.17960794,1618.3,1617.7,15.81245303]
[1745308654663,0.61796079,1618.2,1617.7,15.81260524]
[1745308654864,0.8294,1618.4,1617.9,6.18048169]
[1745308655063,7.00834441,1618.4,1617.9,6.18048169]
[1745308655596,0.005,1618.6,1618.5,6.17856039]
[1745308655811,0.005,1618.6,1618.3,0.8102]
[1745308655973,0.005,1618.6,1618.4,6.17890456]
[1745308656173,0.005,1618.6,1618.3,6.17925745]
[1745308656415,0.005,1618.6,1618.3,6.17912176]
[1745308656594,0.005,1618.6,1618.3,6.17906762]
[1745308656980,0.005,1618.6,1618.4,6.17870845]
[1745308657615,0.005,1618.6,1618.3,6.17920619]
[1745308658510,0.005,1618.6,1618.2,12.81048048]
[1745308658511,0.005,1618.6,1618.2,6.631]
[1745308658713,6.17987279,1618.2,1617.7,6.18156671]
[1745308658916,6.17987279,1618.2,1617.7,8.22811142]
[1745308659121,6.17987279,1618.2,1617.7,2.49877693]
[1745308659307,6.1795304,1618.3,1617.7,8.68009413]
[1745308659501,12.35918029,1618.3,1617.7,14.86145523]
[1745308659694,6.1795304,1618.3,1617.7,8.68009413]
[1745308659889,0.61795304,1618.2,1617.8,6.18098431]
[1745308660285,6.17894874,1618.4,1617.9,6.18052547]
[1745308660718,7.00807551,1618.5,1617.9,6.18052547]
[1745308661017,13.18695093,1618.5,1617.9,6.18052547]
[1745308661215,13.18695603,1618.5,1618.0,6.18046655]
[1745308661794,0.8294,1618.5,1617.9,6.18085172]
[1745308661989,0.8294,1618.5,1617.9,4.29117971]
[1745308662202,0.8294,1618.5,1618.1,6.17990113]
[1745308662521,0.8294,1618.5,1618.2,6.17957124]
[1745308662957,0.8294,1618.5,1618.1,6.98930113]
[1745308664187,7.00799509,1618.5,1618.1,0.8094]
[1745308664396,6.87985292,1618.4,1617.9,9.18061583]
[1745308664611,6.17954087,1618.3,1617.9,3.0]
[1745308664811,6.17952992,1618.3,1617.9,3.0]
[1745308665328,6.17952992,1618.3,1617.8,19.80049]
[1745308665825,6.17952992,1618.3,1617.8,13.61938982]
[1745308666131,0.61795299,1618.2,1617.9,6.18084623]